Cogmind - Beta 17 @@@ ROGUE MODE // 2026.07.28 @ 03:19:44 Player: aperiodic Result: Destroyed by TX-4JU(R) with Subdweller Machine Gun Performance ------------- Evolutions (0) 0 Regions Visited (2) 400 Robots Destroyed (43) 215 Value Destroyed (1049) 1049 Prototype IDs (14) 280 Alien Tech Used (0) 0 Bonus (0) 0 TOTAL SCORE: 1944 Bonus ------- None Cogmind --------- Core Integrity 0/250 Matter 300/300 Energy 155/200 System Corruption 0% Temperature Cool (0) Movement Treading (160) Location -10/Subcaves Parts ------- > --- POWER (1) -------- Subdweller Power Source > --- PROPULSION (2) --- Light Treads Spiked Treads > --- UTILITY (2) ------ Scrap Shield > --- WEAPON (2) ------- Subdweller Beam Cannon Subdweller Machine Gun > --- INVENTORY (5) ---- Wheel High-capacity Matter Pod (200) Subdweller Machine Gun Subdweller Shrapnel Launcher Multitool Peak State ------------ > --- POWER ------------ Subdweller Power Source > --- PROPULSION ------- Spiked Treads Wheel > --- UTILITY ---------- Scrap Shield > --- WEAPON ----------- Subdweller Beam Cannon Subdweller Beam Cannon > --- INVENTORY -------- Wheel High-capacity Matter Pod Assault Rifle Grenade Launcher Multitool [Rating: 13] Favorites ----------- Power Subdweller Power Source Engine Subdweller Power Source Propulsion Light Treads Treads Light Treads Wheel Wheel Utility Scrap Shield Device Seismic Detector Storage Large Storage Unit Protection Scrap Shield Weapon Subdweller Beam Cannon Energy Cannon Subdweller Beam Cannon Ballistic Gun Assault Rifle Launcher Grenade Launcher Build | -11 -10 -10 ------- Run | Yrd Mat Sub Slots Evolved . | . . . Power . | . . . Propulsion . | . . . Utility . | . . . Weapon . | . . . Parts Attached 29 | 10 9 10 Power 3 | 1 1 1 Engine 3 | 1 1 1 Core . | . . . Reactor . | . . . Propulsion 9 | 5 2 2 Treads 3 | . 2 1 Leg . | . . . Wheel 6 | 5 . 1 Hover . | . . . Flight . | . . . Utility 7 | 2 3 2 Device 2 | 1 1 . Storage 3 | 1 2 . Processor . | . . . Hackware . | . . . Protection 2 | . . 2 Artifact . | . . . Weapon 10 | 2 3 5 Energy Gun . | . . . Energy Cannon 3 | . . 3 Ballistic Gun 6 | 2 2 2 Ballistic Cannon . | . . . Launcher 1 | . 1 . Special Weapon . | . . . Impact Weapon . | . . . Slashing Weapon . | . . . Piercing Weapon . | . . . Special Melee Weapon . | . . . Unidentified Prototypes . | . . . Parts Lost 3 | . . 3 Power 1 | . . 1 Propulsion 1 | . . 1 Utility . | . . . Weapon 1 | . . 1 Highest Loss Streak 2 | . . 2 To Critical Strikes . | . . . Average Backups 7 | 4 10 6 Power . | . . . Propulsion 2 | 2 4 1 Utility 1 | . 1 1 Weapon 3 | . 4 2 Tool/Special . | . . . Unused Backups 15 | 1 3 11 Power 1 | . 1 . Propulsion 4 | 1 1 2 Utility 2 | . 1 1 Weapon 7 | . . 7 Tool/Special 1 | . . 1 Average Slot Usage (%) 91 | . 99 87 Engine 13 | . 14 13 Treads 25 | . 21 26 Wheel 2 | . 6 1 Device 4 | . 8 2 Storage 8 | . 19 2 Protection 7 | . . 11 Energy Cannon 13 | . . 20 Ballistic Gun 13 | . 27 6 Peak Build Rating 13 | 7 8 13 Average Rating 10 | 6 7 12 On Entrance 5 | . 7 8 Avg Prop Armor Cover (%) 7 | . . 7 Naked Turns . | . . . Heaviest Build 39 | 14 32 39 Greatest Support 40 | 32 40 40 Greatest Overweight (x) 3 | . 1 3 Average Overweight (x) . | . . . Largest Inventory Capacity 15 | 8 15 15 Average Capacity 8 | 7 11 6 Most Carried 15 | 8 15 15 Average Carried 7 | 4 10 6 Final Capacity 15 | 8 15 5 Final Carried 15 | 8 15 5 Class Distribution -------------------- 52% | Subdweller-Mutant 47% | Mutant Dominant Class ---------------- Mutant | -10/Materials Subdweller-Mutant | -10/Subcaves Resources | -11 -10 -10 ----------- Run | Yrd Mat Sub Matter Collected 1301 | 392 646 263 Remotely . | . . . Salvage Created 1505 | 230 693 582 Parts 110 | 21 40 49 Haulers Intercepted 2 | . 2 . Recyclers Shooed 5 | 1 4 . Parts Field Recycled . | . . . Retrieved Matter . | . . . Parts Self-Destructed 20 | . . 20 Prevented . | . . . Parts Restored . | . . . Kills | -11 -10 -10 ------- Run | Yrd Mat Sub Combat Hostiles Destroyed 25 | . 9 16 Guns 8 | . 7 1 Cannons 9 | . . 9 AOE 6 | . 2 4 Classes Destroyed 11 | 2 5 4 Worker 1 | . 1 . Builder 1 | . 1 . Tunneler 6 | 6 . . Hauler 2 | . 2 . Recycler 4 | 1 3 . Turret 2 | . . 2 Watcher 2 | . 2 . Swarmer 4 | . . 4 Grunt 11 | . 9 2 Sentry 1 | . . 1 Subdweller 9 | . . 9 Best Kill Streak 4 | 4 3 4 Combat Bots Only 4 | . 2 4 Max Kills in Single Turn 2 | 1 1 2 Gunslinging . | . . . Exploded 2 | . 1 2 Melee . | . . . Uniques/NPCs Destroyed . | . . . Combat | -11 -10 -10 -------- Run | Yrd Mat Sub Hostile Shots Fired 155 | . 34 121 Missed 55 | . 11 44 Hits 100 | . 23 77 Projectile 100 | . 23 77 Damage Taken 1264 | . 321 943 Core 252 | . 69 183 Absorbed by Shields . | . . . Core Remaining (%) 100 | 100 . . Volleys Fired 147 | 23 68 56 Largest 2 | 2 2 2 Hottest 160 | 40 40 160 Shots Fired 257 | 46 132 79 Gun 185 | 46 128 11 Cannon 57 | . . 57 Launcher 15 | . 4 11 Special . | . . . Kinetic 185 | 46 128 11 Thermal 57 | . . 57 Explosive 15 | . 4 11 Electromagnetic . | . . . Robot Hit Streak 12 | 11 12 11 Robot Miss Streak 6 | 3 6 1 Penetration Max . | . . . Secondary Targets . | . . . Shots Hit Robots 157 | 28 84 45 Core Hits 73 | 11 37 25 Critical Kills 2 | . . 2 Critical Parts Destroyed . | . . . Critical Strikes 2 | . . 2 Meltdown 2 | . . 2 Melee Attacks . | . . . Impact . | . . . Slashing . | . . . Piercing . | . . . Sneak Attacks . | . . . Combat Hostiles . | . . . Follow-up Attacks . | . . . Damage Inflicted 2844 | 312 1192 1340 Guns 1359 | 312 974 73 Cannons 795 | . . 795 Explosions 690 | . 218 472 Melee . | . . . Ramming . | . . . Kinetic 1359 | 312 974 73 Thermal 795 | . . 795 Explosive 690 | . 218 472 Electromagnetic . | . . . Impact . | . . . Slashing . | . . . Piercing . | . . . Highest Corruption . | . . . Average Corruption . | . . . Corruption Purged . | . . . Corruption Blocked . | . . . Overload Shots . | . . . Overflow Damage 53 | . . 53 Projectiles . | . . . Explosions 53 | . . 53 Melee . | . . . Knockbacks . | . . . Impact . | . . . Kinetic . | . . . Secondary . | . . . Self-Inflicted Damage . | . . . Shots . | . . . Rammed . | . . . Targets Rammed . | . . . Kicked . | . . . Crushed . | . . . Highest Temperature 132 | . 12 132 Average Temperature 41 | . 6 49 Received Heat Transfer 546 | . 177 369 Siege Activations . | . . . Martial Activations . | . . . Shielding Activations . | . . . Robots Disrupted . | . . . Combat Hostiles . | . . . Robots Corrupted . | . . . Combat Hostiles . | . . . Parts Fried . | . . . Impact Corruptions . | . . . Robots Melted 2 | . . 2 Combat Hostiles 2 | . . 2 Parts Melted 4 | . . 4 Heat Transferred 1073 | . . 1073 Parts Sabotaged . | . . . Parts Stolen . | . . . Parts Stripped . | . . . Power Chain Reactions . | . . . Alert | -11 -10 -10 ------- Run | Yrd Mat Sub Maximum Alert Level . | . . . Low Security (%) 100 | 100 100 . Level 1 . | . . . Level 2 . | . . . Level 3 . | . . . Level 4 . | . . . Level 5 . | . . . High Security . | . . . Max Security . | . . . Peak Influence 99 | 10 99 . Initial . | . . . Average 22 | 1 25 . Influence Increases 629 | 35 374 220 Destroy 0b10 Robot/C 360 | . 180 180 Destroy 0b10 Robot/NC 80 | 35 45 . Destroy Leader 68 | . 58 10 Disable Machine 15 | . 15 . Destroy Structure 16 | . 16 . Lose Combat Pursuer 90 | . 60 30 Influence Decreases 629 | 35 322 272 Entered New Map 26 | . . 26 Time Decay 593 | 35 322 236 Lost Part 10 | . . 10 Squads Dispatched 3 | . 3 . Investigation . | . . . Extermination . | . . . Reinforcement 3 | . 3 . Assault . | . . . Garrison . | . . . Intercept . | . . . Searches Triggered . | . . . Construction Impeded . | . . . Haulers Reinforced . | . . . Active Scanning Responses . | . . . Cargo Convoy Interrupts . | . . . Stealth | -11 -10 -10 --------- Run | Yrd Mat Sub Distress Signals . | . . . Communications Jammed . | . . . Distress Signals . | . . . Times Spotted 42 | . 21 21 Peak Tracking Total 6 | . 4 6 Tactical Retreats 3 | . 2 1 Traps | -11 -10 -10 ------- Run | Yrd Mat Sub Traps Triggered 1 | . 1 . Indirectly . | . . . Trap Hack Attempts . | . . . Triggered . | . . . Disarmed . | . . . Reprogrammed . | . . . Reused . | . . . Traps Extracted . | . . . Installed . | . . . Triggered . | . . . Machines | -11 -10 -10 ---------- Run | Yrd Mat Sub Machines Disabled 4 | . 1 3 Max in Single Turn 3 | . 1 3 Machines Repaired . | . . . Machines Dismantled . | . . . Machines Sabotaged . | . . . Overloaded Fab Kills . | . . . Hacking | -11 -10 -10 --------- Run | Yrd Mat Sub Machines Accessed 2 | . . 2 Terminals . | . . . Fabricators . | . . . Repair Stations . | . . . Recycling Units . | . . . Scanalyzers . | . . . Garrison Access . | . . . Total Hacks 3 | . . 3 Successful 3 | . . 3 Failed . | . . . Catastrophic . | . . . Database Lockouts . | . . . Manual . | . . . Terminals . | . . . Fabricators . | . . . Repair Stations . | . . . Recycling Units . | . . . Scanalyzers . | . . . Garrison Access . | . . . Terminal Hacks 3 | . . 3 Record 2 | . . 2 Proto ID Catalog 1 | . . 1 Fabricator Hacks . | . . . Repair Station Hacks . | . . . Recycling Unit Hacks . | . . . Scanalyzer . | . . . Garrison Access Hacks . | . . . Unauthorized Hacks . | . . . Terminals . | . . . Fabricators . | . . . Repair Stations . | . . . Recycling Units . | . . . Scanalyzers . | . . . Garrison Access . | . . . Data Cores Recovered . | . . . Used . | . . . Hacking Detections . | . . . Full Trace Events . | . . . Feedback Events . | . . . Feedback Blocked . | . . . Robot Schematics Acquired . | . . . Robots Built . | . . . Authchips . | . . . Time . | . . . Total Robot Build Rating . | . . . Part Schematics Acquired . | . . . Parts Built . | . . . Authchips . | . . . Time . | . . . Total Part Build Rating . | . . . Part Studies Acquired . | . . . Parts Repaired . | . . . Time . | . . . Parts Recycled . | . . . Recycled Matter . | . . . Retrieved Matter . | . . . Retrieved Components . | . . . Parts Scanalyzed . | . . . Part Schematics Acquired . | . . . Parts Damaged . | . . . Bothacking | -11 -10 -10 ------------ Run | Yrd Mat Sub Used RIF Installer . | . . . Robots Hacked . | . . . Non-combat . | . . . Combat . | . . . Robot Hacks Applied . | . . . Relay Couplers Released . | . . . Fabnet Peak Effective % . | . . . Robots Rewired . | . . . Allies Hacked . | . . . Hacks Repelled . | . . . Allies | -11 -10 -10 -------- Run | Yrd Mat Sub Total Allies . | . . . Largest Group . | . . . Highest-Rated Group . | . . . Highest-Rated Ally . | . . . Total Orders . | . . . Ally Attacks . | . . . Total Damage . | . . . Kills . | . . . Allies Corrupted . | . . . Allies Melted . | . . . Intel | -11 -10 -10 ------- Run | Yrd Mat Sub Active Infowar (turns) 1827 | 192 1019 616 Seismic 1827 | 192 1019 616 Robot Analysis Total . | . . . Derelict Logs Recovered 2 | . . 2 Drone Launches . | . . . Drone Recoveries . | . . . Exploration | -11 -10 -10 ------------- Run | Yrd Mat Sub Turns Passed 5180 | 257 1614 3309 Spaces Moved 2943 | 167 915 1861 Core 3 | 3 . . Treads 2191 | . 539 1652 Legs . | . . . Wheels 749 | 164 376 209 Hover . | . . . Flight . | . . . Fastest Speed 50 | 50 80 110 Average Speed 143 | 94 127 155 Slowest Speed 240 | 100 240 160 Overloaded Moves . | . . . Propulsion Burnouts . | . . . Robots Hopped . | . . . Potential Cave-ins . | . . . Cave-ins Triggered . | . . . Exploration Rate (%) 63 | 6 87 96 Regions Visited 2 Branch Regions 1 Pre-discovered Areas 2 | . . 2 Known Exits Taken . | . . . Unknown Exits Taken 2 | 1 1 . Scrap Searched 11 | . . 11 Spaces Dug . | . . . Terrain Destroyed 62 | . 28 34 Melee . | . . . Projectile 4 | . . 4 AOE 58 | . 28 30 Terrain Rammed . | . . . Walls Destroyed . | . . . Machines Disabled . | . . . Actions | -11 -10 -10 --------- Run | Yrd Mat Sub Total 3666 | 225 1242 2199 Wait 483 | 12 229 242 Move 2941 | 166 914 1861 Hop . | . . . Pick Up 28 | 10 11 7 Fast Attach 15 | 7 2 6 Attach 2 | . . 2 Detach . | . . . Swap 18 | 3 10 5 Drop 25 | 4 8 13 Fire 147 | 23 68 56 Melee . | . . . Ram . | . . . Kick . | . . . Crush . | . . . Escape Stasis . | . . . Rewire . | . . . Trap . | . . . Miscellaneous 7 | . . 7 Route ------- -11/Scrapyard -10/Materials (discovered 5 exits: [*Mat x3] / [*Min] / *Sub) -10/Subcaves (discovered 3 exits: [*Mat x2] / [*Rec]) History --------- Turn | Location | Event 13 | -11/Scrapyard | Discovered new exit (range 15) 258 | -11/Scrapyard | Entered Materials 309 | -10/Materials | Build established: Mutant 388 | -10/Materials | Discovered new exit (range 4) 1211 | -10/Materials | Discovered new exit (range 15) 1438 | -10/Materials | Discovered new exit (range 8) 1462 | -10/Materials | Discovered new exit (range 3) 1860 | -10/Materials | Discovered new exit (range 7) 1872 | -10/Materials | Entered Subcaves 2009 | -10/Subcaves | Discovered new exit (range 14) 2037 | -10/Subcaves | Shifting Twisted Machinery released Sub. Power Source 2057 | -10/Subcaves | Shifting Twisted Machinery released Sub. Optics 2534 | -10/Subcaves | Shifting Twisted Machinery released Scrap Shield 2534 | -10/Subcaves | Shifting Twisted Machinery released Sub. Beam Cannon 2803 | -10/Subcaves | Build established: Subdweller-Mutant 2917 | -10/Subcaves | Visited 4L-MR0's lab 2974 | -10/Subcaves | Discovered new exit (range 12) 3374 | -10/Subcaves | Learned location of Zion (-6) 3374 | -10/Subcaves | Met a Zionite searching for "candidates" 3713 | -10/Subcaves | Visited Clippyterm 3718 | -10/Subcaves | Learned 40 Factory zone layouts 3889 | -10/Subcaves | Core integrity fell below 50% 4109 | -10/Subcaves | Discovered new exit (range 13) 4749 | -10/Subcaves | Core integrity fell below 20% 5015 | -10/Subcaves | Learned location of Storage (-7) 5181 | -10/Subcaves | Destroyed by TX-4JU(R) with Subdweller Machine Gun Last Messages --------------- 04859_ Acquired 2 matter. 04861_ Searching scrap... 04861_ Found Sub. Laser. 04861_ Found 36 Matter. 04892_ Subatomizers dissect the Broken Sub. Beam Cannon. 04906_ Searching scrap... 04906_ Found Sub. Shrapnel Launcher. 04906_ Found 42 Matter. 04909_ Dropped Grenade Launcher. 04910_ Acquired Sub. Shrapnel Launcher. 04928_ Subatomizers dissect the Broken Sub. Beam Cannon. 05015_ Acquired derelict log, extracted data. World map updated: -7/Storage. 05124_ ZO-NC0(u) tweaks Twisted Machinery. 05155_ OX-GMN(R) emerges from the Twisted Machinery. 05170_ ZO-NC0(u) tweaks Twisted Machinery. 05180_ ZO-NC0(u) builds Twisted Machinery. Map ----- +----------------------------------------------------+ | ???????????????????????????????????????????# " | | ???????????????????????????????????????????# " | | ???????????????????????????????????????????## " | | ????????????????????????????????????????????### | | ??????????????????????????????????????????????## | | ???????????????????????????????????????????????### | | ?????????????????????????????????????????????????? | | ?????????????????????????????????????????#####???? | | ??????????????????????? ????????????????# ##### | | ??????????????????????? ????????????????# # ## | | ??????????????????????" ????????????????# | | ??????????????????????" ????????????????# # | | ??????????????????????" ????????????????## # | | ?????????????????????? ?????????????????## | | ??????????????????????# ##????????????????#### | | ??????????????????????# #???????????????????# | | ?????????????????###??# ??????????????????? | | ????????????????## #?## ?????????????????? | | ????????????????# ?? ????????????????? | | ????????????????# #?? ????????????????# | | ????????????????# #??# ?????????????????## | | ????????????????# #??#" #?????????????????? | | ???????????????## ####" ##???????????????? | | ???????????????# """#" #????????????????# | | ???????????????## """RR##????????????????# | | ????????????????# u" @#????????????????# | | ???????????????## #????????????????# | | ???????????????#" #????????????????# <# | | ?????????????# """" ### ##???????????????## #### | | ????????????# ####?# #?????????????????#???? | | ####????????# #????## #?????????????????????? | | #????????# #?????# #?????????????????????? | | ##???????#####?##### #?????????????????????? | | ##????????# ### ## ##?????????????????????? | | ##??????## #??????????????????????? | | ##?????# #??????????????????????? | | #####?# #??????????????????????? | | ### ##### #??????????????????????? | | # ## #########??????????????????????? | | # ###?## ##???????????????????????? | | ##### ##??????????????????????? | | #???????###????????????? | | #####??## #????????????? | | # ## ## #### ##???????????? | | # ####### ##??????##### | | ##?????## ## ######## | | ###???????###### # ## "## ##" | | ##??####?######## ######## "" " | | ######???# ## ##??????## """ | | ?????????# ##???????###### ## #### | +----------------------------------------------------+ Best States ------------- Heat Dissipation 25 Energy Generation 15 Energy Capacity 250 Matter Stores 387 Matter Capacity 500 Sight Range 16 Terrain Scan Density 10 Armor Coverage 800 Evasion (%) 44 Recoil Reduction 2 Item Schematics ----------------- None Robot Schematics ------------------ None Fabricated ------------ Nothing Repaired ---------- Nothing Studied --------- None Alien Tech Used ----------------- None Achievements -------------- None Challenges ------------ None Game ------ Seed DeliveryGravjetLeg Manual? 0 Play Time 00:31:59 Cumulative 780.3 hours Start 2026.07.28 @ 02:17:01 End 2026.07.28 @ 03:19:44 Sessions 3 Manual Loads 0 Difficulty Rogue Special Mode None Game No. 279 Rogue 275 Adventurer 4 Explorer 0 Win Type - Total 21 Types 9/2/6/0/0/0/2/2/0/0 Lore% 88 Gallery% 77 Achievement% 61 Wizard Run 0 Options --------- Layout 1 ASCII 0 Keyboard 0 Movement Arrows Keybinds 0 Fullscreen 1 Font 40/SmallcapsGlow Map View 50x40 Zoom Use 0% Tactical HUD 1 Map Filters NONE Filters NONE Steam 1 RUN: ede485ec-a26c-46dc-b215-9e98903ffed9